fUST/lending_fUST_20250207
["ID","MTS","AMOUNT","RATE_DAILY","PERIOD"]
[352057426,1738914649999,-500.0,0.00013835,2]
[352057427,1738914650008,-500.0,0.00013835,2]
[352057428,1738914650018,-500.0,0.00013835,2]
[352057429,1738914650027,-500.0,0.00013835,2]
[352057430,1738914650036,-500.0,0.00013835,2]
[352057431,1738914650046,-500.0,0.00013835,2]
[352057432,1738914650058,-500.0,0.00013835,2]
[352057433,1738914650067,-500.0,0.00013835,2]
[352057434,1738914650076,-500.0,0.00013835,2]
[352057435,1738914650086,-500.0,0.00013835,2]
[352057436,1738914650096,-500.0,0.00013835,2]
[352057437,1738914650106,-500.0,0.00013835,2]
[352057438,1738914650116,-500.0,0.00013835,2]
[352057439,1738914650126,-778.95,0.00013835,2]
[352057440,1738914650136,-500.0,0.00013835,2]
[352057441,1738914650146,-500.0,0.00013835,2]
[352057442,1738914650156,-500.0,0.00013835,2]
[352057443,1738914650166,-500.0,0.00013835,2]
[352057444,1738914650176,-500.0,0.00013835,2]
[352057445,1738914650186,-500.0,0.00013835,2]
[352057446,1738914650195,-500.0,0.00013835,2]
[352057447,1738914650205,-258.66245147,0.00013835,2]
[352057448,1738914650215,-500.0,0.00013835,2]
[352057449,1738914650225,-500.82521932,0.00013835,2]
[352057450,1738914650235,-500.0,0.00013835,2]
[352057451,1738914650245,-500.0,0.00013835,2]
[352057452,1738914650255,-504.62918245,0.00013835,2]
[352057453,1738914650265,-500.0,0.00013835,2]
[352057454,1738914650275,-503.63500703,0.00013835,2]
[352057455,1738914650285,-500.0,0.00013835,2]
[352057456,1738914650295,-500.0,0.00013835,2]
[352057457,1738914650311,-502.39802918,0.00013835,2]
[352057458,1738914650321,-502.17784361,0.00013835,2]
[352057459,1738914650330,-500.0,0.00013835,2]
[352057460,1738914650340,-500.0,0.00013835,2]
[352057461,1738914650350,-500.0,0.00013835,2]
[352057462,1738914650359,-502.18840362,0.00013835,2]
[352057463,1738914650369,-502.55778372,0.00013835,2]
[352057464,1738914650379,-725.67,0.00013835,2]
[352057465,1738914650389,-500.0,0.00013835,2]
[352057466,1738914650399,-853.53,0.00013835,2]
[352057467,1738914650408,-500.0,0.00013835,2]
[352057468,1738914650419,-503.15495327,0.00013835,2]
[352057469,1738914650428,-505.22785913,0.00013835,2]
[352057470,1738914650438,-501.84304651,0.00013873,2]
[352057471,1738914650521,-500.24336402,0.00013873,2]
[352057472,1738914650531,-500.0,0.00013873,2]
[352057473,1738914650540,-536.43589314,0.00013873,2]
[352057474,1738914650553,-501.89676771,0.00013873,2]
[352057475,1738914650563,-210.25496091,0.00013873,2]
[352057476,1738914650573,-500.0,0.00013873,2]
[352057477,1738914650583,-271.03152097,0.00013873,2]
[352057478,1738914650593,-500.0,0.00013873,2]
[352057479,1738914650605,-500.0,0.00013873,2]
[352057480,1738914650614,-500.0,0.00013873,2]
[352057481,1738914650624,-268.07099807,0.00013873,2]
[352057482,1738914650634,-506.16342408,0.00013873,2]
[352057483,1738914650645,-500.0,0.00013873,2]
[352057484,1738914650655,-500.0,0.00013873,2]
[352057485,1738914650664,-500.0,0.00013873,2]
[352057486,1738914650675,-238.52941062,0.00013873,2]
[352057487,1738914650686,-242.17752481,0.00013873,2]
[352057488,1738914650695,-420.0,0.00013875,2]
[352057489,1738914650705,-151.0,0.000139,2]
[352057490,1738914650715,-151.0,0.000139,2]
[352057491,1738914650724,-151.0,0.000139,2]
[352057492,1738914650734,-151.0,0.000139,2]
[352057493,1738914650743,-151.0,0.000139,2]
[352057494,1738914650753,-151.0,0.000139,2]
[352057495,1738914650763,-194.0,0.00013944,2]
[352057496,1738914650774,-1282.13767487,0.00013971,2]
[352057497,1738914650783,-160.0,0.00013971,2]
[352057498,1738914650793,-500.0,0.00013972,2]
[352057499,1738914650804,-506.15126715,0.00013972,2]
[352057500,1738914650814,-504.02921014,0.00013972,2]
[352057501,1738914650823,-500.0,0.00013972,2]
[352057502,1738914650833,-500.0,0.00013972,2]
[352057503,1738914650843,-500.0,0.00013972,2]
[352057504,1738914650852,-610.7731166,0.00013972,2]
[352057505,1738914650862,-504.34589249,0.00013972,2]
[352057506,1738914650871,-545.93349648,0.00013972,2]
[352057507,1738914650880,-504.20903814,0.00013972,2]
[352057508,1738914650890,-503.31623124,0.00013972,2]
[352057509,1738914650899,-500.0,0.00013972,2]
[352057510,1738914650910,-500.0,0.00013972,2]
[352057511,1738914650919,-229.51558749,0.00013972,2]
[352057512,1738914650929,-500.0,0.00013972,2]
[352057513,1738914650938,-500.0,0.00013972,2]
[352057514,1738914650947,-500.0,0.00013972,2]
[352057515,1738914650956,-500.0,0.00013972,2]
[352057516,1738914650966,-500.0,0.00013972,2]
[352057517,1738914650976,-594.63,0.00013972,2]
[352057518,1738914650985,-319.28,0.00013972,2]
[352057519,1738914650994,-567.02678144,0.00013972,2]
[352057520,1738914651004,-727.895,0.00013972,2]
[352057521,1738914651013,-500.0,0.00013972,2]
[352057522,1738914651023,-500.0,0.00013972,2]
[352057523,1738914651032,-530.10802178,0.00013972,2]
[352057524,1738914651042,-512.1755892,0.00013972,2]
[352057525,1738914651054,-500.0,0.00013972,2]
[352057526,1738914651063,-500.0,0.00013972,2]
[352057527,1738914651073,-500.0,0.00013972,2]
[352057528,1738914651082,-500.0,0.00013972,2]
[352057529,1738914651092,-500.0,0.00013972,2]
[352057530,1738914651101,-500.0,0.00013972,2]
[352057531,1738914651111,-504.10814525,0.00013972,2]
[352057532,1738914651121,-504.28871981,0.00013972,2]
[352057533,1738914651131,-503.69229465,0.00013972,2]
[352057534,1738914651141,-500.0,0.00013972,2]
[352057535,1738914651151,-500.0,0.00013972,2]
[352057536,1738914651161,-500.0,0.00013972,2]
[352057537,1738914651170,-500.0,0.00013972,2]
[352057538,1738914651179,-500.0,0.00013972,2]
[352057539,1738914651189,-504.69941932,0.00013972,2]
[352057540,1738914651198,-636.53750785,0.00013972,2]
[352057541,1738914651207,-500.0,0.00013972,2]
[352057542,1738914651217,-502.4606202,0.00013972,2]
[352057543,1738914651227,-303.19,0.00013972,2]
[352057544,1738914651236,-553.85,0.00013972,2]
[352057545,1738914651245,-500.0,0.00013972,2]
[352057546,1738914651255,-501.96749212,0.00013972,2]
[352057547,1738914651265,-500.0,0.00013972,2]
[352057548,1738914651274,-584.6375172,0.00013972,2]
[352057549,1738914651284,-500.0,0.00013972,2]
[352057550,1738914651293,-500.0,0.00013972,2]
[352057551,1738914651303,-500.0,0.00013972,2]
[352057552,1738914651312,-500.0,0.00013972,2]
[352057553,1738914651322,-316.20214082,0.00013972,2]
[352057554,1738914651332,-500.0,0.00013972,2]
[352057555,1738914651341,-500.0,0.00013972,2]
[352057556,1738914651350,-500.0,0.00013972,2]
[352057557,1738914651360,-500.0,0.00013972,2]
[352057558,1738914651369,-500.0,0.00013972,2]
[352057559,1738914651378,-500.0,0.00013972,2]
[352057560,1738914651389,-579.07,0.00013972,2]
[352057561,1738914651398,-500.0,0.00013972,2]
[352057562,1738914651408,-500.0,0.00013972,2]
[352057563,1738914651417,-268.49800783,0.00013972,2]
[352057564,1738914651427,-500.0,0.00013972,2]
[352057565,1738914651436,-500.0,0.00013972,2]
[352057566,1738914651445,-500.0,0.00013972,2]
[352057567,1738914651455,-504.08081738,0.00013972,2]
[352057568,1738914651464,-500.0,0.00013972,2]
[352057569,1738914651474,-500.0,0.00013972,2]
[352057570,1738914651483,-500.0,0.00013972,2]
[352057571,1738914651492,-500.0,0.00013972,2]
[352057572,1738914651502,-500.0,0.00013972,2]
[352057573,1738914651511,-500.0,0.00013972,2]
[352057574,1738914651520,-547.59,0.00013972,2]
[352057575,1738914651530,-194.82,0.00013972,2]
[352057576,1738914651539,-502.725926,0.00013972,2]
[352057577,1738914651549,-500.0,0.00013972,2]
[352057578,1738914651559,-500.0,0.00013972,2]
[352057579,1738914651568,-500.0,0.00013972,2]
[352057580,1738914651578,-504.96767484,0.00013972,2]
[352057581,1738914651588,-500.0,0.00013972,2]
[352057582,1738914651599,-500.0,0.00013972,2]
[352057583,1738914651611,-500.0,0.00013972,2]
[352057584,1738914651621,-500.0,0.00013972,2]
[352057585,1738914651630,-378.67856845,0.00013972,2]
[352057586,1738914651641,-558.94,0.00013972,2]
[352057587,1738914651651,-3524.7,0.00013972,2]
[352057588,1738914651661,-1000.03,0.00013972,2]
[352057589,1738914651671,-500.0,0.00013972,2]
[352057590,1738914651681,-500.0,0.00013972,2]
[352057591,1738914651691,-500.0,0.00013972,2]
[352057592,1738914651700,-184.17,0.00013972,2]
[352057593,1738914651709,-500.0,0.00013972,2]
[352057594,1738914651718,-4483.01,0.00013972,2]
[352057595,1738914651729,-545.36265627,0.00013972,2]
[352057596,1738914651739,-500.0,0.00013972,2]
[352057597,1738914651749,-500.0,0.00013972,2]
[352057598,1738914651759,-500.0,0.00013972,2]
[352057599,1738914651836,-504.14358661,0.00013972,2]
[352057600,1738914651853,-654.45,0.00013972,2]
[352057601,1738914651863,-500.0,0.00013972,2]
[352057602,1738914651873,-502.49519047,0.00013972,2]
[352057603,1738914651883,-500.0,0.00013972,2]
[352057604,1738914651892,-500.0,0.00013972,2]
[352057605,1738914651902,-500.0,0.00013972,2]
[352057606,1738914651912,-500.0,0.00013972,2]
[352057607,1738914651922,-843.91,0.00013972,2]
[352057608,1738914651931,-500.0,0.00013972,2]
[352057609,1738914651942,-500.0,0.00013972,2]
[352057610,1738914651951,-500.0,0.00013972,2]
[352057611,1738914651961,-1462.32,0.00013972,2]
[352057612,1738914651971,-500.0,0.00013972,2]
[352057613,1738914651980,-576.78526845,0.00013972,2]
[352057614,1738914651990,-500.0,0.00013972,2]
[352057615,1738914652000,-500.0,0.00013972,2]
[352057616,1738914652010,-500.0,0.00013972,2]
[352057617,1738914652020,-719.2,0.00013972,2]
[352057618,1738914652029,-2931.8,0.00013972,2]
[352057619,1738914652039,-500.0,0.00013972,2]
[352057620,1738914652048,-176.76,0.00013972,2]
[352057621,1738914652059,-500.0,0.00013972,2]
[352057622,1738914652068,-500.0,0.00013972,2]
[352057623,1738914652078,-504.04404954,0.00013972,2]
[352057624,1738914652087,-500.0,0.00013972,2]
[352057625,1738914652096,-500.0,0.00013972,2]
[352057626,1738914652106,-500.0,0.00013972,2]
[352057627,1738914652116,-500.0,0.00013972,2]
[352057628,1738914652125,-502.85590627,0.00013972,2]
[352057629,1738914652135,-501.99948763,0.00013972,2]
[352057630,1738914652145,-500.0,0.00013972,2]
[352057631,1738914652155,-500.0,0.00013972,2]
[352057632,1738914652164,-500.0,0.00013972,2]
[352057633,1738914652173,-155.6478779,0.00013972,2]
[352057634,1738914652182,-501.04516685,0.00013972,2]
[352057635,1738914652191,-500.0,0.00013972,2]
[352057636,1738914652201,-500.0,0.00013972,2]
[352057637,1738914652210,-502.28088577,0.00013972,2]
[352057638,1738914652221,-368.3998349,0.00013972,2]
[352057639,1738914652232,-500.0,0.00013972,2]
[352057640,1738914652242,-603.88,0.00013972,2]
[352057641,1738914652252,-500.0,0.00013972,2]
[352057642,1738914652262,-778.95,0.00013972,2]
[352057643,1738914652272,-504.20802069,0.00013972,2]
[352057644,1738914652282,-500.0,0.00013972,2]
[352057645,1738914652291,-500.0,0.00013972,2]
[352057646,1738914652300,-503.27840528,0.00013972,2]
[352057647,1738914652311,-447.11388792,0.00013972,2]
[352057648,1738914652320,-270.94999317,0.00013972,2]
[352057649,1738914652329,-500.0,0.00013972,2]
[352057650,1738914652339,-500.0,0.00013972,2]
[352057651,1738914652349,-414.75,0.00013972,2]
[352057652,1738914652359,-500.0,0.00013972,2]
[352057653,1738914652369,-500.0,0.00013972,2]
[352057654,1738914652378,-500.0,0.00013972,2]
[352057655,1738914652387,-500.0,0.00013972,2]
[352057656,1738914652397,-500.0,0.00013972,2]
[352057657,1738914652406,-725.67,0.00013972,2]
[352057658,1738914652417,-507.06486094,0.00013972,2]
[352057659,1738914652438,-853.53,0.00013972,2]
[352057660,1738914652453,-500.0,0.00013972,2]
[352057661,1738914652470,-400.0,0.00013973,2]
[352057662,1738914652488,-406.13864036,0.0001399,2]
[352057663,1738914652507,-401.2918809,0.00014,2]
[352057664,1738914652524,-151.0,0.00014,2]
[352057665,1738914652541,-1002.28484467,0.00014085,2]
[352057666,1738914652559,-160.0,0.00014099,2]
[352057667,1738914652573,-47864.87889402,0.000141,2]
[352057668,1738914652589,-151.0,0.000141,2]
[352057669,1738914652610,-500.0,0.00014109,2]
[352057670,1738914652628,-500.0,0.00014109,2]
[352057671,1738914652642,-500.0,0.00014109,2]
[352057672,1738914652655,-387.42,0.00014109,2]
[352057673,1738914652675,-500.0,0.00014109,2]
[352057674,1738914652689,-500.0,0.00014109,2]
[352057675,1738914652706,-500.0,0.00014109,2]
[352057676,1738914652718,-643.13,0.00014109,2]
[352057677,1738914652732,-500.0,0.00014109,2]
[352057678,1738914652746,-500.0,0.00014109,2]
[352057679,1738914652759,-500.0,0.00014109,2]
[352057680,1738914652774,-500.0,0.00014109,2]
[352057681,1738914652789,-500.0,0.00014109,2]
[352057682,1738914652805,-500.0,0.00014109,2]
[352057683,1738914652818,-500.0,0.00014109,2]
[352057684,1738914652832,-500.0,0.00014109,2]
[352057685,1738914652846,-500.0,0.00014109,2]
[352057686,1738914652859,-500.0,0.00014109,2]
[352057687,1738914652873,-500.0,0.00014109,2]
[352057688,1738914652886,-424.6675532,0.00014109,2]
[352057689,1738914652901,-500.0,0.00014109,2]
[352057690,1738914652915,-500.0,0.00014109,2]
[352057691,1738914652929,-511.96601292,0.00014109,2]
[352057692,1738914652943,-500.0,0.00014109,2]
[352057693,1738914652957,-500.0,0.00014109,2]
[352057694,1738914652971,-572.01464713,0.00014109,2]
[352057695,1738914652985,-500.0,0.00014109,2]
[352057696,1738914652997,-500.0,0.00014109,2]
[352057697,1738914653011,-510.95440687,0.00014109,2]
[352057698,1738914653025,-500.0,0.00014109,2]
[352057699,1738914653039,-500.0,0.00014109,2]
[352057700,1738914653054,-500.0,0.00014109,2]
[352057701,1738914653068,-500.0,0.00014109,2]
[352057702,1738914653078,-500.0,0.00014109,2]
[352057703,1738914653088,-247.87,0.00014109,2]
[352057704,1738914653097,-536.38,0.00014109,2]
[352057705,1738914653106,-512.83,0.00014109,2]
[352057706,1738914653116,-500.0,0.00014109,2]
[352057707,1738914653126,-500.0,0.00014109,2]
[352057708,1738914653135,-554.41,0.00014109,2]
[352057709,1738914653145,-558.94,0.00014109,2]
[352057710,1738914653154,-3524.7,0.00014109,2]
[352057711,1738914653163,-1000.03,0.00014109,2]
[352057712,1738914653173,-500.0,0.00014109,2]
[352057713,1738914653183,-500.0,0.00014109,2]
[352057714,1738914653193,-500.0,0.00014109,2]
[352057715,1738914653202,-500.0,0.00014109,2]
[352057716,1738914653218,-4483.01,0.00014109,2]
[352057717,1738914653229,-500.0,0.00014109,2]
[352057718,1738914653397,-500.0,0.00014109,2]
[352057719,1738914653413,-654.45,0.00014109,2]
[352057720,1738914653423,-500.0,0.00014109,2]
[352057721,1738914653433,-500.0,0.00014109,2]
[352057722,1738914653443,-500.0,0.00014109,2]
[352057723,1738914653452,-500.0,0.00014109,2]
[352057724,1738914653461,-500.0,0.00014109,2]
[352057725,1738914653471,-843.91,0.00014109,2]
[352057726,1738914653480,-500.0,0.00014109,2]
[352057727,1738914653489,-500.0,0.00014109,2]
[352057728,1738914653498,-525.7,0.00014109,2]
[352057729,1738914653508,-1462.32,0.00014109,2]
[352057730,1738914653518,-500.0,0.00014109,2]
[352057731,1738914653528,-500.0,0.00014109,2]
[352057732,1738914653537,-500.0,0.00014109,2]
[352057733,1738914653547,-719.2,0.00014109,2]
[352057734,1738914653557,-2931.8,0.00014109,2]
[352057735,1738914653566,-500.0,0.00014109,2]
[352057736,1738914653575,-500.0,0.00014109,2]
[352057737,1738914653584,-500.0,0.00014109,2]
[352057738,1738914653594,-500.0,0.00014109,2]
[352057739,1738914653607,-500.0,0.00014109,2]
[352057740,1738914653618,-503.67093681,0.00014109,2]
[352057741,1738914653628,-500.0,0.00014109,2]
[352057742,1738914653637,-500.0,0.00014109,2]
[352057743,1738914653647,-500.0,0.00014109,2]
[352057744,1738914653655,-500.0,0.00014109,2]
[352057745,1738914653664,-500.0,0.00014109,2]
[352057746,1738914653675,-500.0,0.00014109,2]
[352057747,1738914653687,-778.95,0.00014109,2]
[352057748,1738914653696,-500.0,0.00014109,2]
[352057749,1738914653707,-500.0,0.00014109,2]
[352057750,1738914653716,-500.0,0.00014109,2]
[352057751,1738914653725,-500.0,0.00014109,2]
[352057752,1738914653736,-500.0,0.00014109,2]
[352057753,1738914653746,-500.0,0.00014109,2]
[352057754,1738914653755,-500.0,0.00014109,2]
[352057755,1738914653766,-500.0,0.00014109,2]
[352057756,1738914653775,-725.67,0.00014109,2]
[352057757,1738914653784,-853.53,0.00014109,2]
[352057758,1738914653794,-350.61175563,0.00014109,2]
[352057759,1738914653805,-454.31233877,0.00014127,2]
[352057760,1738914653814,-1903.97333441,0.00014146,2]
[352057761,1738914653823,-1139.86275432,0.000142,2]
[352057762,1738914653833,-151.0,0.000142,2]
[352057763,1738914653843,-10000.0,0.000142,2]
[352057764,1738914653854,-500.43405688,0.00014221,2]
[352057765,1738914653864,-566.55419867,0.00014221,2]
[352057766,1738914653874,-1000.0,0.00014221,2]
[352057767,1738914653883,-500.0,0.00014246,2]
[352057768,1738914653892,-500.0,0.00014246,2]
[352057769,1738914653903,-503.66894428,0.00014246,2]
[352057770,1738914653912,-500.0,0.00014246,2]
[352057771,1738914653921,-500.0,0.00014246,2]
[352057772,1738914653931,-500.0,0.00014246,2]
[352057773,1738914653949,-467.03,0.00014246,2]
[352057774,1738914653958,-500.0,0.00014246,2]
[352057775,1738914653969,-510.09551602,0.00014246,2]
[352057776,1738914653979,-500.0,0.00014246,2]
[352057777,1738914653989,-500.0,0.00014246,2]
[352057778,1738914653998,-444.09691191,0.00014246,2]
[352057779,1738914654007,-500.0,0.00014246,2]
[352057780,1738914654016,-500.0,0.00014246,2]
[352057781,1738914654025,-500.0,0.00014246,2]
[352057782,1738914654034,-532.31,0.00014246,2]
[352057783,1738914654044,-500.0,0.00014246,2]
[352057784,1738914654054,-500.0,0.00014246,2]
[352057785,1738914654064,-500.0,0.00014246,2]
[352057786,1738914654073,-491.34354465,0.00014246,2]
[352057787,1738914654084,-500.0,0.00014246,2]
[352057788,1738914654094,-500.0,0.00014246,2]
[352057789,1738914654103,-500.0,0.00014246,2]
[352057790,1738914654113,-500.0,0.00014246,2]
[352057791,1738914654123,-599.9535165,0.00014246,2]
[352057792,1738914654133,-500.23078858,0.00014246,2]
[352057793,1738914654142,-500.0,0.00014246,2]
[352057794,1738914654151,-558.94,0.00014246,2]
[352057795,1738914654161,-3524.7,0.00014246,2]
[352057796,1738914654170,-1000.03,0.00014246,2]
[352057797,1738914654181,-500.0,0.00014246,2]
[352057798,1738914654191,-500.0,0.00014246,2]
[352057799,1738914654201,-500.0,0.00014246,2]
[352057800,1738914654211,-500.0,0.00014246,2]
[352057801,1738914654221,-4483.01,0.00014246,2]
[352057802,1738914654230,-394.81,0.00014246,2]
[352057803,1738914654240,-500.0,0.00014246,2]
[352057804,1738914654249,-654.45,0.00014246,2]
[352057805,1738914654259,-500.0,0.00014246,2]
[352057806,1738914654268,-626.20658873,0.00014246,2]
[352057807,1738914654278,-151.36604435,0.00014246,2]
[352057808,1738914654287,-500.0,0.00014246,2]
[352057809,1738914654298,-500.0,0.00014246,2]
[352057810,1738914654308,-843.91,0.00014246,2]
[352057811,1738914654318,-500.0,0.00014246,2]
[352057812,1738914654327,-500.0,0.00014246,2]
[352057813,1738914654338,-1462.32,0.00014246,2]
[352057814,1738914654348,-284.17,0.00014246,2]
[352057815,1738914654358,-500.0,0.00014246,2]
[352057816,1738914654367,-500.0,0.00014246,2]
[352057817,1738914654377,-719.2,0.00014246,2]
[352057818,1738914654386,-2931.8,0.00014246,2]
[352057819,1738914654396,-500.0,0.00014246,2]
[352057820,1738914654407,-500.0,0.00014246,2]
[352057821,1738914654417,-500.0,0.00014246,2]
[352057822,1738914654426,-500.0,0.00014246,2]
[352057823,1738914654435,-500.0,0.00014246,2]
[352057824,1738914654445,-500.0,0.00014246,2]
[352057825,1738914654455,-500.0,0.00014246,2]
[352057826,1738914654464,-500.0,0.00014246,2]
[352057827,1738914654475,-461.25,0.00014246,2]
[352057828,1738914654484,-500.0,0.00014246,2]
[352057829,1738914654494,-500.0,0.00014246,2]
[352057830,1738914654504,-778.95,0.00014246,2]
[352057831,1738914654514,-500.0,0.00014246,2]
[352057832,1738914654524,-500.0,0.00014246,2]
[352057833,1738914654534,-500.0,0.00014246,2]
[352057834,1738914654543,-500.0,0.00014246,2]
[352057835,1738914654553,-502.27859123,0.00014246,2]
[352057836,1738914654563,-233.29306773,0.00014246,2]
[352057837,1738914654572,-342.70685066,0.00014246,2]
[352057838,1738914654582,-356.04,0.00014246,2]
[352057839,1738914654591,-725.67,0.00014246,2]
[352057840,1738914654603,-853.53,0.00014246,2]
[352057841,1738914654614,-151.25119173,0.00014252,2]
[352057842,1738914654623,-151.0,0.000143,2]
[352057843,1738914654633,-247.0,0.00014362,2]
[352057844,1738914654643,-470.76997868,0.00014383,2]
[352057845,1738914654655,-500.0,0.00014383,2]
[352057846,1738914654668,-336.28562593,0.00014383,2]
[352057847,1738914654677,-500.0,0.00014383,2]
[352057848,1738914654687,-500.0,0.00014383,2]
[352057849,1738914654697,-332.75,0.00014383,2]
[352057850,1738914654706,-373.12125676,0.00014383,2]
[352057851,1738914654716,-500.0,0.00014383,2]
[352057852,1738914654726,-500.0,0.00014383,2]
[352057853,1738914654736,-295.28641733,0.00014383,2]
[352057854,1738914654745,-249.82276479,0.00014383,2]
[352057855,1738914654755,-231.5601373,0.00014383,2]
[352057856,1738914654765,-500.0,0.00014383,2]
[352057857,1738914654775,-500.0,0.00014383,2]
[352057858,1738914654784,-500.0,0.00014383,2]
[352057859,1738914654794,-500.0,0.00014383,2]
[352057860,1738914654805,-500.0,0.00014383,2]
[352057861,1738914654814,-558.94,0.00014383,2]
[352057862,1738914654824,-3524.7,0.00014383,2]
[352057863,1738914654833,-1000.03,0.00014383,2]
[352057864,1738914654842,-500.0,0.00014383,2]
[352057865,1738914654852,-500.0,0.00014383,2]
[352057866,1738914654861,-500.0,0.00014383,2]
[352057867,1738914654871,-500.0,0.00014383,2]
[352057868,1738914654880,-4483.01,0.00014383,2]
[352057869,1738914654890,-565.28,0.00014383,2]
[352057870,1738914654899,-654.45,0.00014383,2]
[352057871,1738914654909,-500.0,0.00014383,2]
[352057872,1738914654918,-500.0,0.00014383,2]
[352057873,1738914654927,-500.0,0.00014383,2]
[352057874,1738914654937,-843.91,0.00014383,2]
[352057875,1738914654947,-500.0,0.00014383,2]
[352057876,1738914654956,-500.0,0.00014383,2]
[352057877,1738914654966,-1462.32,0.00014383,2]
[352057878,1738914654975,-500.0,0.00014383,2]
[352057879,1738914654984,-500.0,0.00014383,2]
[352057880,1738914654994,-719.2,0.00014383,2]
[352057881,1738914655004,-2931.8,0.00014383,2]
[352057882,1738914655013,-500.0,0.00014383,2]
[352057883,1738914655023,-500.0,0.00014383,2]
[352057884,1738914655032,-500.0,0.00014383,2]
[352057885,1738914655042,-500.0,0.00014383,2]
[352057886,1738914655053,-500.0,0.00014383,2]
[352057887,1738914655063,-500.0,0.00014383,2]
[352057888,1738914655073,-500.0,0.00014383,2]
[352057889,1738914655082,-500.0,0.00014383,2]
[352057890,1738914655092,-346.92022482,0.00014383,2]
[352057891,1738914655101,-369.28,0.00014383,2]
[352057892,1738914655111,-778.95,0.00014383,2]
[352057893,1738914655120,-500.0,0.00014383,2]
[352057894,1738914655130,-500.0,0.00014383,2]
[352057895,1738914655139,-500.0,0.00014383,2]
[352057896,1738914655148,-500.0,0.00014383,2]
[352057897,1738914655157,-725.67,0.00014383,2]
[352057898,1738914655166,-853.53,0.00014383,2]
[352057899,1738914655175,-151.0,0.000144,2]
[352057900,1738914655184,-151.0,0.000144,2]
[352057901,1738914655193,-151.0,0.000144,2]
[352057902,1738914655202,-1000.0,0.00014421,2]
[352057903,1738914655212,-1000.0,0.00014421,2]
[352057904,1738914655221,-503.18470137,0.00014421,2]
[352057905,1738914655230,-502.09484924,0.00014421,2]
[352057906,1738914655240,-1000.0,0.00014421,2]
[352057907,1738914655249,-1005.45560939,0.00014421,2]
[352057908,1738914655258,-1000.0,0.00014421,2]
[352057909,1738914655267,-700.0,0.00014438,2]
[352057910,1738914655276,-500.0,0.0001452,2]
[352057911,1738914655285,-255.15,0.0001452,2]
[352057912,1738914655294,-500.0,0.0001452,2]
[352057913,1738914655306,-510.96599223,0.0001452,2]
[352057914,1738914655315,-500.0,0.0001452,2]
[352057915,1738914655324,-500.0,0.0001452,2]
[352057916,1738914655333,-593.94976778,0.0001452,2]
[352057917,1738914655343,-500.0,0.0001452,2]
[352057918,1738914655352,-500.0,0.0001452,2]
[352057919,1738914655361,-500.0,0.0001452,2]
[352057920,1738914655370,-558.94,0.0001452,2]
[352057921,1738914655380,-3524.7,0.0001452,2]
[352057922,1738914655390,-1000.03,0.0001452,2]
[352057923,1738914655400,-500.0,0.0001452,2]
[352057924,1738914655409,-500.0,0.0001452,2]
[352057925,1738914655419,-500.0,0.0001452,2]